fUST/lending_fUST_20250724
["ID","MTS","AMOUNT","RATE_DAILY","PERIOD"]
[374470857,1753312255923,-162.63,0.0002464,2]
[374470858,1753312255933,-800.0,0.00024645,2]
[374470859,1753312255943,-541.78,0.00024657,2]
[374470860,1753312255952,-541.78,0.00024657,2]
[374470861,1753312255963,-541.78,0.00024657,2]
[374470862,1753312255973,-541.78,0.00024657,2]
[374470863,1753312255982,-541.78,0.00024657,2]
[374470864,1753312255992,-541.78,0.00024657,2]
[374470865,1753312256004,-541.78,0.00024657,2]
[374470866,1753312256015,-541.78,0.00024657,2]
[374470867,1753312256033,-541.78,0.00024657,2]
[374470868,1753312256057,-541.78,0.00024657,2]
[374470869,1753312256080,-541.78,0.00024657,2]
[374470870,1753312256103,-541.78,0.00024657,2]
[374470871,1753312256126,-541.78,0.00024657,2]
[374470872,1753312256150,-541.78,0.00024657,2]
[374470873,1753312256173,-541.78,0.00024657,2]
[374470874,1753312256197,-541.78,0.00024657,2]
[374470875,1753312256221,-541.78,0.00024657,2]
[374470876,1753312256244,-541.78,0.00024657,2]
[374470877,1753312256267,-541.78,0.00024657,2]
[374470878,1753312256289,-541.78,0.00024657,2]
[374470879,1753312256313,-541.78,0.00024657,2]
[374470880,1753312256325,-151.0,0.00024657,7]
[374470881,1753312256335,-151.0,0.00024657,7]
[374470882,1753312256346,-2615.42,0.00024657,2]
[374470883,1753312256356,-151.0,0.00024657,7]
[374470884,1753312256366,-151.0,0.00024657,7]
[374470885,1753312256376,-526.91241575,0.00024657,2]
[374470886,1753312256389,-1147.42758425,0.00024657,2]
[374470887,1753312256399,-450.17161246,0.00024657,2]
[374470888,1753312256411,-2611.71838754,0.00024657,2]
[374470889,1753312256422,-424.74,0.00024657,2]
[374470890,1753312256533,-1430.89097433,0.00024657,2]
[374470891,1753312256551,-460.0,0.00019178,2]
[374470892,1753312256561,-33.22902567,0.00024657,2]
[374470893,1753312256571,-65.94597433,0.00024657,2]
[374470894,1753312256654,-460.0,0.00019178,2]
[374470895,1753312256664,-460.0,0.00019178,2]
[374470896,1753312256676,-460.0,0.00019452,2]
[374470897,1753312256685,-460.0,0.00019452,2]
[374470898,1753312256695,-460.0,0.00019726,2]
[374470899,1753312256708,-460.0,0.00019726,2]
[374470900,1753312256718,-429.674968,0.00024055,2]
[374470901,1753312256727,-151.0,0.00024383,7]
[374470902,1753312256737,-1212.84402567,0.00024657,2]
[374470903,1753312256749,-861.74,0.00024657,2]
[374470904,1753312256758,-460.0,0.00024657,2]
[374470905,1753312256768,-917.78,0.00024657,2]
[374470906,1753312256785,-1212.98,0.00024657,2]
[374470907,1753312256795,-800.45,0.00024657,2]
[374470908,1753312256805,-505.49,0.00024657,2]
[374470909,1753312256815,-868.55,0.00024657,2]
[374470910,1753312256825,-380.0,0.00024658,2]
[374470911,1753312256835,-200.0,0.00024658,2]
[374470912,1753312256844,-200.0,0.00024658,15]
[374470913,1753312256853,-151.0,0.00024658,2]
[374470914,1753312256863,-151.0,0.00024658,2]
[374470915,1753312256872,-151.0,0.00024658,2]
[374470916,1753312256882,-661.0,0.00024658,2]
[374470917,1753312256891,-151.38205073,0.00024658,2]
[374470918,1753312256900,-151.0,0.00024658,2]
[374470919,1753312256909,-151.0,0.00024658,2]
[374470920,1753312256919,-198.0,0.00024658,2]
[374470921,1753312256929,-151.17869458,0.00024658,2]
[374470922,1753312256938,-151.0,0.00024658,2]
[374470923,1753312256948,-151.0,0.00024658,2]
[374470924,1753312256957,-151.0,0.00024658,2]
[374470925,1753312256967,-151.0,0.00024658,2]
[374470926,1753312256976,-184.94735063,0.00024658,2]
[374470927,1753312256986,-151.0,0.00024658,2]
[374470928,1753312256996,-151.0,0.00024658,2]
[374470929,1753312257006,-460.0,0.00024658,2]
[374470930,1753312257015,-151.0,0.00024658,2]
[374470931,1753312257025,-642.0,0.00024658,2]
[374470932,1753312257035,-151.0,0.00024658,2]
[374470933,1753312257044,-192.27108482,0.00024658,2]
[374470934,1753312257054,-151.0,0.00024658,2]
[374470935,1753312257063,-500.0,0.00024658,2]
[374470936,1753312257073,-1150.401182,0.0002466,5]
[374470937,1753312257082,-253.67784971,0.00024677,2]
[374470938,1753312257092,-1000.0,0.0002468,5]
[374470939,1753312257101,-298.0,0.00024692,2]
[374470940,1753312257111,-800.0,0.00024698,2]
[374470941,1753312257120,-1000.0,0.000247,5]
[374470942,1753312257129,-500.0,0.00024706,2]
[374470943,1753312257146,-1000.0,0.0002472,5]
[374470944,1753312257160,-167.37613978,0.00024729,2]
[374470945,1753312257173,-160.0,0.0002473,3]
[374470946,1753312257183,-160.0,0.0002473,3]
[374470947,1753312257192,-166.0,0.0002473,3]
[374470948,1753312257201,-166.0,0.0002473,3]
[374470949,1753312257210,-166.0,0.0002473,3]
[374470950,1753312257220,-166.0,0.0002473,3]
[374470951,1753312257229,-166.0,0.0002473,3]
[374470952,1753312257238,-166.0,0.0002473,3]
[374470953,1753312257248,-191.431774,0.0002473,3]
[374470954,1753312257257,-1753.0,0.0002473,3]
[374470955,1753312257267,-1753.0,0.0002473,3]
[374470956,1753312257276,-1753.0,0.0002473,3]
[374470957,1753312257286,-1202.09213164,0.0002473,3]
[374470958,1753312257298,-263.65,0.0002473,3]
[374470959,1753312257334,-287.25786836,0.0002473,3]
[374470960,1753312257343,-1753.0,0.0002473,3]
[374470961,1753312257352,-8.93605397,0.0002473,3]
[374470962,1753312257364,-1744.06394603,0.0002473,3]
[374470963,1753312257373,-1753.0,0.0002473,3]
[374470964,1753312257383,-1740.73713352,0.0002473,3]
[374470965,1753312257392,-324.0,0.0002473,3]
[374470966,1753312257402,-324.0,0.0002473,3]
[374470967,1753312257412,-324.0,0.0002473,3]
[374470968,1753312257421,-324.0,0.0002473,3]
[374470969,1753312257431,-324.0,0.0002473,3]
[374470970,1753312257440,-324.0,0.0002473,3]
[374470971,1753312257450,-324.0,0.0002473,3]
[374470972,1753312257459,-324.0,0.0002473,3]
[374470973,1753312257468,-324.0,0.0002473,3]
[374470974,1753312257478,-324.0,0.0002473,3]
[374470975,1753312257487,-324.0,0.0002473,3]
[374470976,1753312257497,-324.0,0.0002473,3]
[374470977,1753312257507,-324.0,0.0002473,3]
[374470978,1753312257516,-324.0,0.0002473,3]
[374470979,1753312257525,-1000.0,0.0002474,5]
[374470980,1753312257535,-1000.0,0.0002476,5]
[374470981,1753312257544,-500.0,0.00024762,2]
[374470982,1753312257554,-153.0,0.00024767,2]
[374470983,1753312257563,-153.0,0.00024767,2]
[374470984,1753312257573,-1648.91416045,0.00024771,2]
[374470985,1753312257582,-6589.06098515,0.00024771,2]
[374470986,1753312257592,-990.98948351,0.00024771,2]
[374470987,1753312257602,-298.0,0.00024772,2]
[374470988,1753312257611,-1000.0,0.0002478,5]
[374470989,1753312257621,-152.709429,0.00024797,7]
[374470990,1753312257630,-152.709429,0.00024797,7]
[374470991,1753312257639,-151.0,0.000248,2]
[374470992,1753312257648,-353.67228,0.000248,7]
[374470993,1753312257657,-353.67228,0.000248,7]
[374470994,1753312257666,-1000.0,0.000248,5]
[374470995,1753312257675,-1757.12339173,0.000248,2]
[374470996,1753312257684,-1228.18950279,0.000248,2]
[374470997,1753312257695,-500.0,0.00024825,2]
[374470998,1753312257709,-154.15,0.00024828,2]
[374470999,1753312257718,-6246.61600666,0.0002484,2]
[374471000,1753312257727,-500.0,0.00024845,2]
[374471001,1753312257737,-1228.18950273,0.00024845,2]
[374471002,1753312257747,-154.15,0.00024862,2]
[374471003,1753312257756,-500.0,0.00024869,2]
[374471004,1753312257765,-500.0,0.0002488,2]
[374471005,1753312257774,-223.863048,0.00024888,7]
[374471006,1753312257784,-223.863048,0.00024888,7]
[374471007,1753312257793,-151.0,0.00024888,7]
[374471008,1753312257802,-361.598047,0.00024888,7]
[374471009,1753312257811,-361.598047,0.00024888,7]
[374471010,1753312257820,-151.0,0.00024888,7]
[374471011,1753312257830,-151.0,0.00024888,2]
[374471012,1753312257838,-151.0,0.00024888,7]
[374471013,1753312257847,-353.67228,0.00024888,7]
[374471014,1753312257857,-353.67228,0.00024888,7]
[374471015,1753312257866,-500.0,0.00024888,2]
[374471016,1753312257875,-152.709429,0.0002489,15]
[374471017,1753312257885,-1228.18950273,0.00024891,2]
[374471018,1753312257894,-151.0,0.00024893,2]
[374471019,1753312257903,-500.0,0.00024896,2]
[374471020,1753312257913,-154.15,0.00024896,2]
[374471021,1753312257923,-152.709429,0.00024896,3]
[374471022,1753312257932,-152.709429,0.00024896,3]
[374471023,1753312257941,-4306.27311021,0.000249,2]
[374471024,1753312257950,-297.794752,0.000249,7]
[374471025,1753312257960,-297.794752,0.000249,7]
[374471026,1753312257969,-223.863048,0.000249,7]
[374471027,1753312257978,-223.863048,0.000249,7]
[374471028,1753312257987,-223.863048,0.000249,7]
[374471029,1753312257997,-223.863048,0.000249,7]
[374471030,1753312258006,-151.0,0.000249,7]
[374471031,1753312258015,-151.0,0.000249,7]
[374471032,1753312258024,-361.598047,0.000249,7]
[374471033,1753312258033,-361.598047,0.000249,7]
[374471034,1753312258042,-361.598047,0.000249,7]
[374471035,1753312258052,-361.598047,0.000249,7]
[374471036,1753312258061,-151.0,0.000249,7]
[374471037,1753312258070,-151.0,0.000249,7]
[374471038,1753312258082,-151.0,0.000249,7]
[374471039,1753312258091,-151.0,0.000249,7]
[374471040,1753312258101,-353.67228,0.000249,7]
[374471041,1753312258110,-353.67228,0.000249,7]
[374471042,1753312258120,-1593.36126279,0.000249,2]
[374471043,1753312258130,-151.0,0.000249,7]
[374471044,1753312258139,-151.0,0.000249,7]
[374471045,1753312258148,-151.434926,0.000249,7]
[374471046,1753312258157,-180.05127002,0.000249,2]
[374471047,1753312258167,-1918.513987,0.000249,7]
[374471048,1753312258176,-1918.513987,0.000249,7]
[374471049,1753312258185,-204.798761,0.000249,7]
[374471050,1753312258195,-151.0,0.000249,7]
[374471051,1753312258204,-151.0,0.000249,7]
[374471052,1753312258213,-153.861108,0.000249,7]
[374471053,1753312258223,-251.4,0.000249,7]
[374471054,1753312258232,-153.861108,0.000249,7]
[374471055,1753312258242,-151.0,0.000249,7]
[374471056,1753312258251,-276.372292,0.000249,7]
[374471057,1753312258260,-151.0,0.000249,7]
[374471058,1753312258270,-151.0,0.000249,7]
[374471059,1753312258280,-588.672875,0.000249,7]
[374471060,1753312258289,-624.458409,0.000249,7]
[374471061,1753312258299,-151.0,0.000249,7]
[374471062,1753312258308,-588.672875,0.000249,7]
[374471063,1753312258317,-624.458409,0.000249,7]
[374471064,1753312258327,-152.709429,0.000249,2]
[374471065,1753312258336,-203082.85352642,0.000249,2]
[374471066,1753312258349,-1145.15721172,0.000249,2]
[374471067,1753312258503,-460.0,0.00019178,2]
[374471068,1753312258512,-460.0,0.00019178,2]
[374471069,1753312258522,-239.0990001,0.00019452,2]
[374471070,1753312258575,-220.9009999,0.00019452,2]
[374471071,1753312258584,-460.0,0.00019726,2]
[374471072,1753312258594,-13706.32211996,0.000249,2]
[374471073,1753312258608,-13972.75398,0.000249,2]
[374471074,1753312337480,-1729.81663727,0.00017978,2]
[374471075,1753312337506,-500.0,0.00018078,2]
[374471076,1753312337530,-500.0,0.00018078,2]
[374471077,1753312337553,-500.0,0.00018078,2]
[374471078,1753312337576,-500.0,0.00018078,2]
[374471079,1753312337600,-500.0,0.00018078,2]
[374471080,1753312337623,-223.62722196,0.00018078,2]
[374471081,1753312337646,-500.0,0.00018078,2]
[374471082,1753312337668,-500.0,0.00018078,2]
[374471083,1753312337691,-500.0,0.00018078,2]
[374471084,1753312337714,-500.0,0.00018078,2]
[374471085,1753312337742,-250.0,0.00018078,2]
[374471086,1753312337767,-500.00000001,0.00018078,2]
[374471087,1753312337794,-460.0,0.00019178,2]
[374471088,1753312337969,-460.0,0.00019178,2]
[374471089,1753312337992,-460.0,0.00019178,2]
[374471090,1753312338015,-460.0,0.00019178,2]
[374471091,1753312338037,-460.0,0.00019178,2]
[374471092,1753312338059,-460.0,0.00019178,2]
[374471093,1753312338087,-460.0,0.00019178,2]
[374471094,1753312338111,-460.0,0.00019178,2]
[374471095,1753312338134,-460.0,0.00019178,2]
[374471096,1753312338155,-460.0,0.00019178,2]
[374471097,1753312338176,-460.0,0.00019178,2]
[374471098,1753312338198,-460.0,0.00019178,2]
[374471099,1753312338218,-506.91666108,0.00019178,2]
[374471100,1753312338240,-460.0,0.00019178,2]
[374471101,1753312338266,-15.63947968,0.00019178,2]
[374471103,1753312404880,-16185.0,0.00018778,2]
[374471108,1753312516902,703.07512044,0.00026027,120]
[374471110,1753312550508,-168.0,0.00018302,2]
[374471111,1753312550529,-197.0,0.00018778,2]
[374471113,1753312813603,-422.0976813,0.00018226,2]
[374471114,1753312813631,-37.9023187,0.00018489,2]
[374471116,1753313007144,-366.91666462,0.00018275,2]
[374471117,1753313007170,-150.0,0.0001846,2]
[374471118,1753313007194,-50.85128431,0.00018778,2]
[374471119,1753313007217,-3710.23205107,0.000191,3]
[374471122,1753313030711,220.433338,0.00013699,2]
[374471125,1753313078038,-300.0,0.00019077,2]
[374471126,1753313078059,-9912.0,0.00019078,2]
[374471128,1753313148129,-188.39240436,0.00019076,2]
[374471129,1753313148154,-88.0,0.00019078,2]
[374471130,1753313148176,-15.51563203,0.000191,3]
[374471131,1753313148198,-500.0,0.00019173,2]
[374471132,1753313148233,-300.0,0.00019176,2]
[374471133,1753313148264,-238.0,0.00019176,2]
[374471134,1753313148294,-300.0,0.00019176,2]
[374471135,1753313148317,-300.0,0.00019176,2]
[374471136,1753313148340,-311.1175773,0.00019176,2]
[374471138,1753313219230,-150.0,0.00018589,2]
[374471139,1753313219251,-153.0,0.00018603,2]
[374471140,1753313228132,-65.5908595,0.00018603,2]
[374471141,1753313228155,-183.8824227,0.00019176,2]
[374471142,1753313228178,-641.94035556,0.00019177,2]
[374471143,1753313228201,-166.11379338,0.00019177,2]
[374471146,1753313237133,-169.48136937,0.00018312,2]
[374471147,1753313241090,-178.05107063,0.00018312,2]
[374471148,1753313241113,-333.88620662,0.00019177,2]
[374471149,1753313241139,-144.45873744,0.00019177,2]
[374471150,1753313241172,-157.9167,0.00019177,2]
[374471151,1753313247086,-197.62456256,0.00019177,2]
[374471152,1753313247109,-500.0,0.00019177,2]
[374471153,1753313247131,-187.85232391,0.00019177,2]
[374471158,1753313291404,-300.0,0.00017999,2]
[374471159,1753313291427,-35608.12106569,0.00018,2]
[374471160,1753313291623,-9345.59431155,0.00018,2]
[374471161,1753313291655,-134.28462276,0.00018579,2]
[374471167,1753313323178,1154.47857139,0.0001,2]
[374471171,1753313351103,-10299.54748205,0.00018,2]
[374471187,1753313432556,-216.13562977,0.00018,2]
[374471188,1753313432566,-1115.84859021,0.00018393,2]
[374471189,1753313432576,-712.66059485,0.000189,2]
[374471197,1753313439556,-142.28211521,0.000189,2]
[374471198,1753313439566,-216.71317498,0.00019016,2]
[374471199,1753313439575,-68.98060186,0.00019168,3]
[374471200,1753313439586,-265.13939814,0.00019168,3]
[374471201,1753313439597,-290.41630177,0.00019168,3]
[374471202,1753313439608,-43.70369823,0.00019168,3]
[374471203,1753313439618,-500.0,0.00019173,2]
[374471204,1753313439627,-500.0,0.00019173,2]
[374471205,1753313439636,-300.0,0.00019175,2]
[374471206,1753313439646,-171.0,0.00019175,2]
[374471207,1753313439655,-1083.0,0.00019175,2]
[374471208,1753313439665,-500.0,0.00019176,2]
[374471209,1753313439675,-500.0,0.00019176,2]
[374471210,1753313439683,-500.0,0.00019176,2]
[374471211,1753313439692,-500.0,0.00019176,2]
[374471212,1753313439701,-138.22589866,0.00019176,2]
[374471213,1753313439712,-335.0956944,0.00019176,2]
[374471214,1753313439749,-26.67840694,0.00019176,2]
[374471215,1753313439759,-385.88105772,0.00019176,2]
[374471216,1753313439769,-221.49861464,0.00019176,2]
[374471217,1753313439779,-28451.13800771,0.00019177,2]
[374471218,1753313439788,-413.90249356,0.00019177,2]
[374471219,1753313439798,-465.32266636,0.00019178,2]
[374471220,1753313439808,-460.0,0.00019178,2]
[374471221,1753313439818,-460.0,0.00019178,2]
[374471222,1753313439829,-460.0,0.00019178,2]
[374471223,1753313439839,-1000.0,0.00019178,2]
[374471224,1753313439848,-460.45881149,0.00019178,2]
[374471225,1753313439858,-460.0,0.00019178,2]
[374471226,1753313439868,-460.0,0.00019178,2]
[374471227,1753313439877,-396.62917581,0.00019178,2]
[374471228,1753313439890,-460.0,0.00019178,2]
[374471229,1753313439899,-460.0,0.00019178,2]
[374471230,1753313439909,-460.0,0.00019178,2]
[374471231,1753313439918,-460.0,0.00019178,2]
[374471232,1753313439928,-460.0,0.00019178,2]
[374471233,1753313439937,-460.0,0.00019178,2]
[374471234,1753313439946,-460.0,0.00019178,2]
[374471235,1753313439956,-460.0,0.00019178,2]
[374471236,1753313439965,-460.0,0.00019178,2]
[374471237,1753313439975,-460.0,0.00019178,2]
[374471238,1753313439984,-460.0,0.00019178,2]
[374471239,1753313439993,-460.0,0.00019178,2]
[374471240,1753313440003,-460.0,0.00019178,2]
[374471241,1753313440017,-460.0,0.00019178,2]
[374471242,1753313440027,-460.0,0.00019178,2]
[374471243,1753313440037,-460.0,0.00019178,2]
[374471244,1753313440047,-386.54041967,0.00019178,2]
[374471245,1753313440056,-460.0,0.00019178,2]
[374471247,1753313440066,-460.0,0.00019178,2]
[374471248,1753313440076,-460.0,0.00019178,2]
[374471249,1753313440086,-460.0,0.00019178,2]
[374471250,1753313440096,-460.0,0.00019178,2]
[374471251,1753313440105,-460.0,0.00019178,2]
[374471253,1753313440114,-460.0,0.00019178,2]
[374471254,1753313440124,-188.86749796,0.00019178,2]
[374471255,1753313440133,-460.0,0.00019178,2]
[374471256,1753313440143,-460.0,0.00019178,2]
[374471257,1753313440152,-500.0,0.00019178,2]
[374471258,1753313440161,-460.0,0.00019178,2]
[374471259,1753313440174,-460.0,0.00019178,2]
[374471260,1753313440183,-462.39176709,0.00019178,2]
[374471261,1753313440192,-460.0,0.00019178,2]
[374471262,1753313440202,-460.0,0.00019178,2]
[374471263,1753313440211,-460.0,0.00019178,2]
[374471264,1753313440220,-460.0,0.00019178,2]
[374471265,1753313440230,-460.0,0.00019178,2]
[374471266,1753313440239,-460.0,0.00019178,2]
[374471267,1753313440249,-460.0,0.00019178,2]
[374471268,1753313440259,-460.0,0.00019178,2]
[374471269,1753313440268,-460.0,0.00019178,2]
[374471270,1753313440278,-460.0,0.00019178,2]
[374471271,1753313440288,-460.0,0.00019178,2]
[374471272,1753313440298,-465.2611379,0.00019178,2]
[374471273,1753313440307,-460.0,0.00019178,2]
[374471274,1753313440318,-460.0,0.00019178,2]
[374471282,1753313440495,-460.0,0.00019178,2]
[374471283,1753313440505,-460.0,0.00019178,2]
[374471284,1753313440515,-460.0,0.00019178,2]
[374471285,1753313440525,-460.0,0.00019178,2]
[374471286,1753313440534,-460.0,0.00019178,2]
[374471287,1753313440544,-460.0,0.00019178,2]
[374471288,1753313440553,-460.0,0.00019178,2]
[374471289,1753313440563,-460.0,0.00019178,2]
[374471290,1753313440573,-460.0,0.00019178,2]
[374471291,1753313440582,-460.0,0.00019178,2]
[374471292,1753313440592,-460.0,0.00019178,2]
[374471293,1753313440601,-460.0,0.00019178,2]
[374471294,1753313440611,-460.0,0.00019178,2]
[374471295,1753313440620,-460.0,0.00019178,2]
[374471296,1753313440630,-460.0,0.00019178,2]
[374471297,1753313440639,-460.0,0.00019178,2]
[374471298,1753313440648,-460.0,0.00019178,2]
[374471299,1753313440658,-460.0,0.00019178,2]
[374471300,1753313440667,-460.0,0.00019178,2]
[374471301,1753313440676,-321.01346423,0.00019178,2]
[374471302,1753313440686,-460.0,0.00019178,2]
[374471303,1753313440695,-460.0,0.00019178,2]
[374471304,1753313440705,-460.0,0.00019178,2]
[374471305,1753313440714,-460.0,0.00019178,2]
[374471306,1753313440724,-460.0,0.00019178,2]
[374471307,1753313440734,-460.0,0.00019178,2]
[374471308,1753313440743,-460.0,0.00019178,2]
[374471309,1753313440752,-460.0,0.00019178,2]
[374471310,1753313440762,-184.72,0.00019178,2]
[374471311,1753313440771,-460.0,0.00019178,2]
[374471312,1753313440780,-460.0,0.00019178,2]
[374471313,1753313440790,-460.0,0.00019178,2]
[374471314,1753313440799,-460.0,0.00019178,2]
[374471315,1753313440809,-460.0,0.00019178,2]
[374471316,1753313440818,-325.2509377,0.00019178,2]
[374471317,1753313440828,-460.0,0.00019178,2]
[374471318,1753313440837,-460.0,0.00019178,2]
[374471319,1753313440846,-462.01424896,0.00019178,2]
[374471320,1753313440856,-365.35570083,0.00019178,2]
[374471321,1753313440865,-460.0,0.00019178,2]
[374471322,1753313440874,-460.0,0.00019178,2]
[374471323,1753313440883,-460.0,0.00019178,2]
[374471324,1753313440892,-460.0,0.00019178,2]
[374471325,1753313440902,-460.0,0.00019178,2]
[374471326,1753313440911,-460.0,0.00019178,2]
[374471327,1753313440921,-460.0,0.00019178,2]
[374471328,1753313440930,-460.0,0.00019178,2]
[374471329,1753313440939,-460.0,0.00019178,2]
[374471330,1753313440948,-460.0,0.00019178,2]
[374471331,1753313440957,-460.0,0.00019178,2]
[374471332,1753313440967,-460.0,0.00019178,2]
[374471333,1753313440976,-460.0,0.00019178,2]
[374471334,1753313440984,-460.0,0.00019178,2]
[374471335,1753313440994,-460.0,0.00019178,2]
[374471336,1753313441003,-460.0,0.00019178,2]
[374471337,1753313441013,-460.0,0.00019178,2]
[374471338,1753313441022,-460.0,0.00019178,2]
[374471339,1753313441031,-460.0,0.00019178,2]
[374471340,1753313441040,-460.0,0.00019178,2]
[374471341,1753313441049,-460.0,0.00019178,2]
[374471342,1753313441058,-317.6,0.00019178,2]
[374471343,1753313441068,-500.0,0.00019178,2]
[374471344,1753313441078,-500.0,0.00019178,2]
[374471345,1753313441088,-500.0,0.00019178,2]
[374471346,1753313441098,-500.0,0.00019178,2]
[374471347,1753313441107,-311.54426243,0.00019178,2]
[374471348,1753313441117,-460.0,0.00019178,2]
[374471349,1753313441126,-460.0,0.00019178,2]
[374471350,1753313441135,-460.0,0.00019178,2]
[374471351,1753313441145,-460.0,0.00019178,2]
[374471352,1753313441154,-460.0,0.00019178,2]
[374471353,1753313441165,-460.0,0.00019178,2]
[374471354,1753313441177,-460.0,0.00019178,2]
[374471355,1753313441187,-460.0,0.00019178,2]
[374471356,1753313441197,-460.0,0.00019178,2]
[374471357,1753313441214,-646.2666394,0.00019178,2]
[374471358,1753313441228,-522.87,0.00019178,2]
[374471359,1753313441239,-460.0,0.00019178,2]
[374471360,1753313441252,-460.0,0.00019178,2]
[374471361,1753313441265,-460.0,0.00019178,2]
[374471362,1753313441275,-460.0,0.00019178,2]
[374471363,1753313441285,-460.0,0.00019178,2]
[374471364,1753313441295,-462.27660256,0.00019178,2]
[374471365,1753313441305,-580.45093493,0.00019178,2]
[374471366,1753313441315,-460.0,0.00019178,2]
[374471367,1753313441326,-2574.26,0.00019178,2]
[374471368,1753313441336,-2143.7,0.00019178,2]
[374471369,1753313441345,-460.0,0.00019178,2]
[374471370,1753313441355,-460.0,0.00019178,2]
[374471371,1753313441364,-599.79484754,0.00019178,2]
[374471372,1753313441374,-460.0,0.00019178,2]
[374471373,1753313441384,-460.0,0.00019178,2]
[374471374,1753313441394,-460.0,0.00019178,2]
[374471375,1753313441404,-460.0,0.00019178,2]
[374471376,1753313441413,-460.0,0.00019178,2]
[374471377,1753313441422,-460.0,0.00019178,2]
[374471378,1753313441431,-460.0,0.00019178,2]
[374471379,1753313441441,-460.0,0.00019178,2]
[374471380,1753313441450,-460.0,0.00019178,2]
[374471381,1753313441459,-460.0,0.00019178,2]
[374471382,1753313441468,-1439.47,0.00019178,2]
[374471383,1753313441479,-460.0,0.00019178,2]
[374471384,1753313441490,-460.0,0.00019178,2]
[374471385,1753313441500,-460.0,0.00019178,2]
[374471386,1753313441512,-460.0,0.00019178,2]
[374471387,1753313441522,-460.0,0.00019178,2]
[374471388,1753313441532,-460.0,0.00019178,2]
[374471389,1753313441542,-460.0,0.00019178,2]
[374471390,1753313441553,-460.0,0.00019178,2]
[374471391,1753313441563,-460.0,0.00019178,2]
[374471392,1753313441573,-460.0,0.00019178,2]
[374471393,1753313441583,-460.0,0.00019178,2]
[374471394,1753313441593,-205.23222555,0.00019178,2]
[374471395,1753313441603,-460.0,0.00019178,2]
[374471396,1753313441612,-460.0,0.00019178,2]
[374471397,1753313441623,-500.0,0.00019178,2]
[374471398,1753313441633,-500.0,0.00019178,2]
[374471399,1753313441642,-500.0,0.00019178,2]
[374471400,1753313441651,-460.0,0.00019178,2]
[374471401,1753313441661,-460.0,0.00019178,2]
[374471402,1753313441671,-460.0,0.00019178,2]
[374471403,1753313441680,-460.0,0.00019178,2]
[374471404,1753313441690,-460.0,0.00019178,2]
[374471405,1753313441699,-460.0,0.00019178,2]
[374471406,1753313441710,-460.0,0.00019178,2]
[374471407,1753313441719,-1297.21,0.00019178,2]
[374471408,1753313441729,-460.0,0.00019178,2]
[374471409,1753313441739,-460.0,0.00019178,2]
[374471410,1753313441749,-460.0,0.00019178,2]
[374471411,1753313441759,-511.55,0.00019178,2]
[374471412,1753313441770,-460.0,0.00019178,2]
[374471413,1753313441780,-460.0,0.00019178,2]
[374471414,1753313441789,-460.0,0.00019178,2]
[374471415,1753313441799,-460.0,0.00019178,2]